fUSD/lending_fUSD_20240609
["ID","MTS","AMOUNT","RATE_DAILY","PERIOD"]
[328893890,1717965042538,-1382.19034372,0.00021525,2]
[328893891,1717965042566,-16093.011465,0.00021525,2]
[328893892,1717965042673,-1408.02620954,0.00021525,2]
[328893893,1717965042783,-555.64000001,0.00021525,2]
[328893894,1717965042795,-20470.47145279,0.00021525,2]
[328893897,1717965043789,-329.70444574,0.00021525,2]
[328893898,1717965043889,-135080.08398175,0.00021525,2]
[328893917,1717965044482,-909.22461577,0.00021525,2]
[328893918,1717965044598,-4193.688803,0.00021525,2]
[328893919,1717965044714,-2629.4155181,0.00021525,2]
[328893926,1717965046621,-884.93499,0.00021525,2]
[328893940,1717965046787,-1420.59816615,0.00021525,2]
[328893942,1717965046798,-150.0,0.00021554,2]
[328893943,1717965046808,-250.0,0.00021562,2]
[328893944,1717965046818,-17778.94461385,0.00021781,7]
[328893945,1717965046834,-14166.94,0.00021781,7]
[328893969,1717965178073,-7542.42300852,0.00016333,2]
[328893970,1717965178106,-2370.40737101,0.00016334,2]
[328893971,1717965178133,-238.17862197,0.00016334,2]
[328893972,1717965178162,-537.72037607,0.00016335,2]
[328893973,1717965178192,-3198.15287891,0.00016335,2]
[328893975,1717965212558,-168.70238207,0.00016234,2]
[328893976,1717965212589,-1901.41285593,0.00016333,2]
[328893977,1717965212620,-230.76701848,0.00016333,2]
[328893979,1717965223952,1570753.139116,0.00014,2]
[328893980,1717965223987,100000.0,0.00014,2]
[328893981,1717965224583,-150.0,0.00014,2]
[328893983,1717965225451,-150.0,0.00014,2]
[328893984,1717965226042,-150.0,0.00014,2]
[328893985,1717965226560,-150.0,0.00014,2]
[328893986,1717965227176,-150.0,0.00014,2]
[328893987,1717965227660,-150.0,0.00014,2]
[328893988,1717965228267,-150.0,0.00014,2]
[328893989,1717965228993,-150.0,0.00014,2]
[328893990,1717965229411,-150.0,0.00014,2]
[328893991,1717965229954,-150.0,0.00014,2]
[328893992,1717965230422,-150.0,0.00014,2]
[328893993,1717965231095,-150.0,0.00014,2]
[328893994,1717965231624,-150.0,0.00014,2]
[328893995,1717965232148,-150.0,0.00014,2]
[328893996,1717965232847,-150.0,0.00014,2]
[328893997,1717965233362,-150.0,0.00014,2]
[328893998,1717965233899,-150.0,0.00014,2]
[328893999,1717965234351,-150.0,0.00014,2]
[328894000,1717965234915,-150.0,0.00014,2]
[328894001,1717965235504,-150.0,0.00014,2]
[328894002,1717965235930,-150.0,0.00014,2]
[328894003,1717965236795,-150.0,0.00014,2]
[328894004,1717965237460,-150.0,0.00014,2]
[328894005,1717965237929,-150.0,0.00013999,2]
[328894006,1717965238692,-5.0,0.00013999,2]
[328894007,1717965238721,-145.0,0.00014,2]
[328894008,1717965239330,-150.0,0.00014,2]
[328894009,1717965239988,-150.0,0.00014,2]
[328894010,1717965240505,-150.0,0.00014,2]
[328894011,1717965240783,150.0,0.000133,2]
[328894012,1717965240817,807.88321473,0.000133,2]
[328894013,1717965240969,-150.0,0.00014,2]
[328894014,1717965241615,-150.0,0.00013999,2]
[328894015,1717965242115,-150.0,0.00013999,2]
[328894016,1717965242675,-150.0,0.00013999,2]
[328894017,1717965243275,-150.0,0.00013999,2]
[328894018,1717965245190,150.0,0.000118,2]
[328894019,1717965245218,150.0,0.000118,2]
[328894020,1717965245242,150.0,0.000118,2]
[328894021,1717965245269,150.0,0.000118,2]
[328894022,1717965245309,150.0,0.000118,2]
[328894023,1717965245347,1888.21172292,0.000118,2]
[328894024,1717965251908,150.0,0.00011,2]
[328894025,1717965251933,150.0,0.00011,2]
[328894026,1717965251955,150.0,0.00011,2]
[328894027,1717965251980,150.0,0.00011,2]
[328894028,1717965252005,150.0,0.00011,2]
[328894029,1717965252030,150.0,0.00011,2]
[328894030,1717965252054,150.0,0.00011,2]
[328894031,1717965252079,150.0,0.00011,2]
[328894032,1717965252105,68.42502626,0.00011,2]
[328894033,1717965254793,81.57497374,0.000133,2]
[328894034,1717965254820,150.0,0.000133,2]
[328894035,1717965254848,150.0,0.000133,2]
[328894036,1717965254875,150.0,0.000133,2]
[328894037,1717965254902,150.0,0.000133,2]
[328894038,1717965254927,150.0,0.000133,2]
[328894039,1717965254957,126.30824099,0.000133,2]
[328894040,1717965260526,245.55323742,0.000134,4]
[328894041,1717965260566,54.44676258,0.000134,4]
[328894042,1717965262657,600.0,0.000135,4]
[328894043,1717965264880,900.0,0.000136,4]
[328894044,1717965267008,150.0,0.000137,5]
[328894045,1717965267039,150.0,0.000137,5]
[328894046,1717965267082,1000.0,0.000137,5]
[328894047,1717965272796,173.69175901,0.000133,2]
[328894048,1717965272831,605.6551278,0.000133,2]
[328894051,1717965298737,150.0,0.000133,2]
[328894052,1717965298763,5.0,0.000133,2]
[328894053,1717965299674,145.0,0.000133,2]
[328894054,1717965299698,150.0,0.000133,2]
[328894055,1717965299723,52.7395466,0.000133,2]
[328894056,1717965305111,4310.79539039,0.000133,2]
[328894057,1717965312668,150.0,0.000133,2]
[328894058,1717965312696,150.0,0.000133,2]
[328894059,1717965312722,5.34272508,0.000133,2]
[328894060,1717965315499,1378.78371426,9.975e-05,2]
[328894061,1717965317678,197.81369082,0.000133,2]
[328894062,1717965329504,150.0,9.975e-05,2]
[328894063,1717965329531,150.0,9.975e-05,2]
[328894064,1717965349506,150.0,9.975e-05,2]
[328894065,1717965349532,150.0,9.975e-05,2]
[328894067,1717965367509,150.0,7.481e-05,2]
[328894068,1717965367534,150.0,7.481e-05,2]
[328894069,1717965387542,150.0,7.481e-05,2]
[328894070,1717965387567,150.0,7.481e-05,2]
[328894071,1717965390511,183.02,0.00013029,2]
[328894072,1717965394950,58.89772832,0.0001,2]
[328894073,1717965394983,17246.25825639,0.0001,2]
[328894081,1717965558868,638.0833,0.00013692,2]
[328894082,1717965717439,165.6,0.00012006,2]
[328894084,1717965745873,-645.71954176,0.00013776,2]
[328894085,1717965745918,-404.3713556,0.00013777,2]
[328894086,1717965745953,-8420.13275678,0.00013778,2]
[328894087,1717965745986,-1052.98663514,0.00013779,2]
[328894088,1717965746018,-429.72610694,0.00013779,2]
[328894089,1717965746054,-1092.67693956,0.00013788,2]
[328894090,1717965746087,-885.31313169,0.00013799,2]
[328894091,1717965746124,-1600.0,0.000138,5]
[328894092,1717965746159,-526.96,0.0001389,2]
[328894093,1717965746195,-300.0,0.000139,5]
[328894094,1717965746230,-196.78108181,0.000139,2]
[328894095,1717965746268,-185.89877539,0.000139,2]
[328894096,1717965746300,-155.49416021,0.000139,2]
[328894097,1717965746333,-171.56500119,0.000139,2]
[328894098,1717965746365,-655.68125142,0.000139,2]
[328894099,1717965746398,-545.13568984,0.000139,2]
[328894100,1717965746430,-10525.51860503,0.00013988,2]
[328894101,1717965746460,-9717.63,0.00013988,2]
[328894102,1717965746492,-150.99,0.00013988,2]
[328894103,1717965746527,-153.38,0.0001399,2]
[328894104,1717965746559,-153.38,0.0001399,2]
[328894105,1717965746591,-153.38,0.0001399,2]
[328894106,1717965746624,-153.38,0.0001399,2]
[328894107,1717965746660,-153.38,0.0001399,2]
[328894108,1717965746692,-153.38,0.0001399,2]
[328894109,1717965746724,-153.38,0.0001399,2]
[328894110,1717965746756,-153.38,0.0001399,2]
[328894111,1717965746789,-153.38,0.0001399,2]
[328894112,1717965746824,-153.38,0.0001399,2]
[328894113,1717965746857,-153.38,0.0001399,2]
[328894114,1717965746890,-153.38,0.0001399,2]
[328894115,1717965746922,-499.99,0.0001399,2]
[328894116,1717965746954,-263.8016458,0.00013997,2]
[328894117,1717965746987,-1000.0,0.00013998,2]
[328894118,1717965747019,-540.31525626,0.00013998,2]
[328894119,1717965747053,-3615.26,0.00013998,2]
[328894120,1717965747088,-192.01336417,0.00013999,2]
[328894121,1717965747122,-54385.47870141,0.00013999,2]
[328894122,1717965782833,-319.94132489,0.000139,2]
[328894123,1717965782863,-166.54643438,0.000139,2]
[328894124,1717965782892,-570.08912071,0.00013997,2]
[328894125,1717965782923,-4760.50425002,0.00013998,2]
[328894126,1717965782953,-502.35922141,0.00013998,2]
[328894127,1717965782982,-1052.98663514,0.00013998,2]
[328894128,1717965783011,-646.75392619,0.00013998,2]
[328894129,1717965783042,-41980.81908726,0.00013999,2]
[328894130,1717965808746,-297.2955027,0.000139,2]
[328894131,1717965808776,-820.32417175,0.00013998,2]
[328894132,1717965808808,-48882.38032555,0.00013999,2]
[328894133,1717965830011,-437.12083428,0.000139,2]
[328894134,1717965830042,-49562.87916572,0.00013999,2]
[328894135,1717965851455,-363.42379324,0.000139,2]
[328894136,1717965851486,-327.87677653,0.00013997,2]
[328894137,1717965851517,-227.303828,0.00013998,2]
[328894138,1717965851547,-155.82954055,0.00013998,2]
[328894139,1717965851577,-48925.56606168,0.00013999,2]
[328894140,1717965882430,-2407.06195,0.00013819,2]
[328894141,1717965882465,-235.10641019,0.00013888,2]
[328894142,1717965882497,-2368.60119743,0.00013889,2]
[328894143,1717965882529,-526.42,0.0001389,3]
[328894144,1717965882563,-155.49416019,0.000139,2]
[328894145,1717965882594,-163.21533727,0.00013997,2]
[328894146,1717965882627,-155.0,0.00013997,2]
[328894147,1717965882657,-506.54758575,0.00013997,2]
[328894148,1717965882686,-155.0,0.00013998,2]
[328894149,1717965882719,-43327.55335917,0.00013999,2]
[328894150,1717965886491,-50000.0,0.00013999,2]
[328894151,1717965917105,-150.0,0.00013973,2]
[328894152,1717965917136,-206.00138128,0.00013996,2]
[328894153,1717965917165,-887.46048948,0.00013997,2]
[328894154,1717965917200,-234.74657076,0.00013997,2]
[328894155,1717965917231,-625.74636743,0.00013997,2]
[328894156,1717965917261,-158.3464596,0.00013997,2]
[328894157,1717965917294,-155.0,0.00013997,2]
[328894158,1717965917331,-786.24788383,0.00013997,2]
[328894159,1717965917365,-2875.9454186,0.00013998,2]
[328894160,1717965917398,-43920.50542902,0.00013999,2]
[328894161,1717965918962,-155.0,0.00013972,2]
[328894162,1717965918994,-155.0,0.00013997,2]
[328894163,1717965919026,-506.72413374,0.00013997,2]
[328894164,1717965919057,-49183.27586626,0.00013999,2]
[328894165,1717966044143,-4444.03789171,0.00013726,2]
[328894166,1717966044169,-1625.08193792,0.00013726,2]
[328894167,1717966044194,-3146.642159,0.00013727,2]
[328894168,1717966044220,-407.56315179,0.00013795,2]
[328894169,1717966044244,-155.0,0.00013795,2]
[328894170,1717966044269,-296.77241989,0.00013796,2]
[328894171,1717966044294,-5023.28899209,0.00013796,2]
[328894172,1717966060510,155.0,0.00012597,2]
[328894173,1717966077244,165.03454232,0.00013696,2]
[328894174,1717966095414,1992.55811252,0.00013622,2]
[328894176,1717966122991,166.62489551,0.0001372,2]
[328894177,1717966129636,238.17862197,0.0001372,2]
[328894178,1717966129971,719.32179268,0.0001372,2]
[328894181,1717966149325,-195.75770378,0.00013721,2]
[328894182,1717966149352,-4291.15759947,0.00013721,2]
[328894183,1717966149381,-1264.4,0.00013722,2]
[328894184,1717966149407,-587.3383,0.000139,2]
[328894185,1717966149435,-291.41388952,0.000139,2]
[328894186,1717966149461,-242.28252882,0.000139,2]
[328894187,1717966149489,-162.4674394,0.000139,2]
[328894188,1717966149514,-266.39840914,0.00013929,2]
[328894189,1717966149540,-499.99,0.00013929,2]
[328894190,1717966149565,-2368.60119743,0.00013997,2]
[328894191,1717966149591,-158.57802204,0.00013997,2]
[328894192,1717966149616,-235.01777921,0.00013997,2]
[328894193,1717966149641,-1052.85767216,0.00013997,2]
[328894194,1717966149666,-3968.47977605,0.00013997,2]
[328894195,1717966149693,-379.65717525,0.00013997,2]
[328894196,1717966149718,-1623.96769994,0.00013997,2]
[328894197,1717966149744,-508.68271826,0.00013997,2]
[328894198,1717966149774,-5393.53122023,0.00013997,2]
[328894199,1717966149798,-166.43094977,0.00013997,2]
[328894200,1717966149822,-239.869756,0.00013997,2]
[328894201,1717966149848,-394.76868411,0.00013997,2]
[328894202,1717966149873,-1040.19756488,0.00013998,2]
[328894203,1717966149901,-1261.47243226,0.00013998,2]
[328894204,1717966149926,-623.12782107,0.00013998,2]
[328894205,1717966149950,-268.27696931,0.00013998,2]
[328894206,1717966149977,-1940.19680221,0.00013998,2]
[328894207,1717966150002,-327.87677653,0.00013998,2]
[328894208,1717966150031,-11251.81470162,0.00013999,2]
[328894209,1717966154228,-546.7610585,0.00013998,2]
[328894210,1717966154256,-6410.5907415,0.00013999,2]
[328894211,1717966157136,-17243.43500269,0.00013999,2]
[328894212,1717966160429,-48963.62338,0.00013999,2]
[328894213,1717966162167,-125787.19,0.00013999,2]
[328894216,1717966164244,-3134.7159,0.00013999,2]
[328894217,1717966171182,-3151.05868452,0.00013998,2]
[328894218,1717966171208,-187.92596808,0.00013998,2]
[328894219,1717966171240,-37741.1593474,0.00013999,2]
[328894224,1717966232524,-198.1970018,0.000139,2]
[328894225,1717966232536,-153.38,0.0001399,2]
[328894226,1717966232546,-7030.7997232,0.00013999,2]
[328894227,1717966232562,-3488.42895453,0.00013999,2]
[328894228,1717966232573,-2638.79904547,0.00014,2]
[328894229,1717966232588,-5695.5,0.00014,2]
[328894230,1717966232601,-6915.4085,0.00014,2]
[328894231,1717966232613,-747.562701,0.00014,2]
[328894232,1717966232626,-4125.0000005,0.00014,2]
[328894233,1717966232696,-604.135,0.00014,2]
[328894234,1717966232710,-778.63384695,0.00014,2]
[328894235,1717966232724,-2015.29501095,0.00014,2]
[328894236,1717966232738,-4205.98716292,0.00014,2]
[328894237,1717966232752,-538.88,0.00014,2]
[328894238,1717966232874,-2253.71037969,0.00014,2]
[328894239,1717966232888,-6336.6456329,0.00014,2]
[328894240,1717966232979,-3655.23039409,0.00014,2]
[328894241,1717966233010,-264.00369996,0.00014,2]
[328894242,1717966233024,-1311.27055774,0.00014,2]
[328894243,1717966233075,-3252.16784281,0.00014,2]
[328894244,1717966233121,-5018.83705891,0.00014,2]
[328894245,1717966233133,-673.43302,0.00014,2]
[328894246,1717966233165,-1292.78021195,0.00014,2]
[328894247,1717966233178,-2708.4,0.00014,2]
[328894248,1717966233270,-8698.57941669,0.00014,2]
[328894249,1717966233287,-2131.10060352,0.00014,2]
[328894250,1717966233305,-691.95,0.00014,2]
[328894258,1717966238185,-194.27592634,0.000139,2]
[328894260,1717966238195,-1022.22141621,0.000139,2]
[328894263,1717966238287,-1062.95310897,0.000139,2]
[328894264,1717966238297,-89046.95506376,0.00014,2]
[328894265,1717966238311,-19040.13239026,0.00014,2]
[328894266,1717966238324,-27011.69078168,0.00014,2]
[328894267,1717966238466,-1703.41591,0.00014,2]
[328894268,1717966238482,-1078.0799953,0.00014,2]
[328894269,1717966238496,-1095.36771121,0.00014,2]
[328894270,1717966238508,-1840.7599115,0.00014,2]
[328894271,1717966238521,-12964.29464399,0.00014,2]
[328894272,1717966238534,-1847.439928,0.00014,2]
[328894273,1717966238549,-7020.34704115,0.00014,2]
[328894274,1717966238562,-5114.17852271,0.00014,2]
[328894275,1717966238576,-433.26798901,0.00014,2]
[328894276,1717966238632,-804.4421225,0.00014,2]
[328894277,1717966238765,-344.66694542,0.00014,2]
[328894278,1717966238887,-4288.7768895,0.00014,2]
[328894279,1717966238900,-2765.18937841,0.00014,2]
[328894283,1717966239939,-667.76472037,0.00014,2]
[328894284,1717966239952,-326.82220256,0.00014,2]
[328894285,1717966239977,-23470.0,0.00014,2]
[328894286,1717966239992,-22281.08576953,0.00014,2]
[328894287,1717966240005,-670.31329616,0.00014,2]
[328894288,1717966240018,-675.40068488,0.00014,2]
[328894290,1717966242266,-1899.99999999,0.00014,2]
[328894291,1717966242303,-1048.0,0.00014,2]
[328894292,1717966242523,-161.52168588,0.000139,2]
[328894293,1717966242534,-848.19498471,0.00014,2]
[328894294,1717966242623,-999.99174,0.00014,2]
[328894295,1717966242806,-6242.66587894,0.00014,2]
[328894296,1717966242910,-258.97174254,0.00014,2]
[328894297,1717966242934,-2092.52396507,0.00014,2]
[328894298,1717966242947,-340.0090999,0.00014,2]
[328894299,1717966242960,-953.445,0.00014,2]
[328894300,1717966243035,-306329.26061162,0.00014,2]
[328894303,1717966243049,-416.5028322,0.00014,2]
[328894306,1717966243067,-1480.10299423,0.00014,2]
[328894337,1717966243616,-86346.12676147,0.00014,2]
[328894338,1717966244317,-4269.24437304,0.00014,2]
[328894339,1717966244332,-715.44491315,0.00014,2]
[328894340,1717966244352,-10394.25069797,0.00014,2]
[328894341,1717966244366,-3977.57470231,0.00014,2]
[328894436,1717966247527,-100557.62173435,0.00014,2]
[328894438,1717966247544,-28543.46684798,0.00014,2]
[328894441,1717966247557,-4045.83117806,0.00014,2]
[328894448,1717966247626,-717.88682808,0.00014,2]
[328894450,1717966247638,-264.208,0.00014,2]
[328894452,1717966247650,-17153.56,0.00014,2]
[328894456,1717966247680,-949.65,0.00014,2]
[328894458,1717966247693,-702.70595647,0.00014,2]
[328894463,1717966247727,-3272.35512418,0.00014,2]
[328894465,1717966247740,-593.2174,0.00014,2]
[328894467,1717966247754,-1381.77622,0.00014,2]
[328894469,1717966247772,-700.0,0.00014,2]
[328894472,1717966247795,-6330.0,0.00014,2]
[328894503,1717966248119,-459.4508895,0.00014,2]
[328894898,1717966367807,955.3248852,0.000133,2]
[328894899,1717966371822,150.0,0.00012597,2]
[328894900,1717966371847,26.45645745,0.00012597,2]
[328894901,1717966456972,150.0,0.000127,2]
[328894902,1717966456999,150.0,0.000127,2]
[328894903,1717966457025,150.0,0.000127,2]
[328894904,1717966457051,64.5,0.000127,2]
[328894905,1717966470640,150.0,0.00012597,2]
[328894906,1717966470666,150.0,0.00012597,2]
[328894907,1717966470691,150.0,0.00012597,2]
[328894908,1717966470716,150.0,0.00012597,2]
[328894909,1717966470743,150.0,0.00012597,2]
[328894910,1717966470766,150.0,0.00012597,2]
[328894911,1717966470792,150.0,0.00012597,2]
[328894912,1717966470817,150.0,0.00012597,2]
[328894913,1717966470843,150.0,0.00012597,2]
[328894914,1717966470867,150.0,0.00012597,2]
[328894915,1717966470896,150.0,0.00012597,2]
[328894916,1717966470925,150.0,0.00012597,2]
[328894917,1717966470950,150.0,0.00012597,2]
[328894918,1717966470976,150.0,0.00012597,2]
[328894919,1717966471007,150.0,0.00012597,2]
[328894920,1717966471034,150.0,0.00012597,2]
[328894921,1717966471060,150.0,0.00012597,2]
[328894922,1717966471086,150.0,0.00012597,2]
[328894923,1717966471114,150.0,0.00012597,2]
[328894924,1717966471142,150.0,0.00012597,2]
[328894925,1717966471184,150.0,0.00012597,2]
[328894926,1717966471224,150.0,0.00012597,2]
[328894927,1717966471264,150.0,0.00012597,2]
[328894928,1717966471302,150.0,0.00012597,2]
[328894929,1717966471354,72909.97876086,0.00012597,2]
[328894930,1717966477580,150.0,0.00012596,2]
[328894931,1717966477613,538.66530274,0.00012596,2]
[328894932,1717966554727,5981.0,0.0003,90]
[328894933,1717966563372,150.0,0.00013554,2]
[328894934,1717966632366,150.0,0.00013679,2]
[328894935,1717966632395,287.81129389,0.00013679,2]
[328894936,1717966632429,1983.96867876,0.00013679,2]
[328894937,1717966651836,250.0,0.00013441,2]
[328894938,1717966664559,183.02,0.00010708,2]
[328894939,1717966669890,231.69,0.0001343,2]
[328894940,1717966670274,231.69,0.00013467,2]
[328894941,1717966670335,231.69,0.00013504,2]
[328894942,1717966670575,231.69,0.0001354,2]
[328894943,1717966670798,231.69,0.00013577,2]
[328894944,1717966671018,231.69,0.00013614,2]
[328894945,1717966671257,231.69,0.00013651,2]
[328894946,1717966671678,231.69,0.00013688,2]
[328894947,1717966693410,155.0,0.0001372,2]
[328894948,1717966703270,309.35,0.00013699,2]
[328894949,1717966703465,208.18338657,0.0001372,2]
[328894950,1717966707357,155.0,0.0001372,2]
[328894951,1717966708486,10975.55818722,0.0001372,2]
[328894952,1717966715923,153.04,0.00013026,2]
[328894953,1717966728470,345.67546553,0.0001372,2]
[328894954,1717966733378,250.0,0.00013057,2]
[328894955,1717966739729,864.46411372,0.0001372,2]
[328894956,1717966772227,177.58,0.00013605,2]
[328894957,1717966774113,688.66530274,0.0001372,2]
[328894958,1717966798312,799.42038404,0.00013297,2]
[328894959,1717966804879,217.40040456,0.0001372,2]
[328894960,1717966823998,226.54,0.00013062,2]
[328894961,1717966848456,2751.0,0.00013699,2]
[328894962,1717966870832,22174.69,0.00013036,2]
[328894963,1717966871614,165.6,0.00010429,2]
[328894964,1717966927504,187.19,0.00013036,2]
[328894965,1717966984969,1000.94,0.00013036,2]
[328894966,1717966990183,488.77,0.00011118,2]
[328894967,1717966990447,488.77,0.00013382,2]
[328894968,1717967017162,653.36,0.00013036,2]
[328894969,1717967017412,653.36,0.00013039,2]
[328894970,1717967017645,653.36,0.00013043,2]
[328894971,1717967018084,653.36,0.00013046,2]
[328894972,1717967018517,653.36,0.0001305,2]
[328894973,1717967018813,653.36,0.00013053,2]
[328894974,1717967019050,653.36,0.00013057,2]
[328894975,1717967019271,653.36,0.0001306,2]
[328894976,1717967019488,653.36,0.00013063,2]
[328894977,1717967019705,653.36,0.00013067,2]
[328894978,1717967019945,653.36,0.0001307,2]
[328894979,1717967020166,653.36,0.00013074,2]
[328894980,1717967020377,653.36,0.00013077,2]
[328894981,1717967020622,653.36,0.0001308,2]
[328894982,1717967020840,653.36,0.00013084,2]
[328894983,1717967021060,653.36,0.00013087,2]
[328894984,1717967021316,653.36,0.00013091,2]
[328894985,1717967021580,653.36,0.00013094,2]
[328894986,1717967021782,653.36,0.00013098,2]
[328894987,1717967022095,653.36,0.00013101,2]
[328894988,1717967030718,488.52,0.0001314,2]
[328894989,1717967103618,200.0,0.00013036,2]
[328894990,1717967106943,1000.0,0.00013043,2]
[328894991,1717967111858,23900.0,0.00013043,2]
[328894992,1717967141412,1792.13,0.00013045,2]
[328894993,1717967197476,154.46,0.00013089,2]
[328894994,1717967197647,154.46,0.00013129,2]
[328894995,1717967197880,154.46,0.0001317,2]
[328894996,1717967198101,154.46,0.0001321,2]
[328894997,1717967198346,154.46,0.0001325,2]
[328894998,1717967198602,154.46,0.0001329,2]
[328894999,1717967198860,154.46,0.0001333,2]
[328895000,1717967199282,154.46,0.0001337,2]
[328895001,1717967199345,154.46,0.0001341,2]
[328895002,1717967199609,154.46,0.0001345,2]
[328895003,1717967199923,154.46,0.0001349,2]
[328895004,1717967200110,154.46,0.00013531,2]
[328895005,1717967200354,154.46,0.00013571,2]
[328895006,1717967200586,154.46,0.00013611,2]
[328895007,1717967200808,154.46,0.00013651,2]
[328895008,1717967201030,154.46,0.00013691,2]
[328895009,1717967231106,-218.18317582,0.00013721,2]
[328895010,1717967234202,154.67,0.00013699,2]
[328895011,1717967238121,-1683.22968011,0.00013721,2]
[328895012,1717967238146,-315.13667523,0.00013721,2]
[328895013,1717967238173,-759.95,0.00013726,2]
[328895014,1717967238199,-154.46,0.00013731,2]
[328895015,1717967238226,-154.46,0.00013771,2]
[328895016,1717967238252,-261.94697163,0.00013807,2]
[328895017,1717967238277,-1079.10729343,0.00013897,2]
[328895018,1717967238301,-150.0,0.00013898,2]
[328895019,1717967238326,-150.0,0.00013898,2]
[328895020,1717967238351,-5012.2489,0.00013899,2]
[328895021,1717967238375,-499.99,0.00013899,2]
[328895022,1717967238400,-330.85478834,0.00013899,2]
[328895023,1717967238424,-188.20708037,0.00013899,2]
[328895024,1717967238458,-189.8335214,0.000139,2]
[328895025,1717967238488,-4742.87283111,0.000139,2]
[328895026,1717967243837,-297.14938501,0.000139,2]
[328895027,1717967253094,-1877.78991347,0.000139,2]
[328895029,1717967302858,170.28763134,0.00013297,2]
[328895031,1717967353101,-193.37310458,0.00013899,2]
[328895032,1717967353124,-785.89921602,0.00013899,2]
[328895033,1717967356144,-1115.51363991,0.00013899,2]
[328895034,1717967356169,-1127.59289464,0.000139,2]
[328895035,1717967356194,-196.78108181,0.000139,2]
[328895036,1717967356219,-387.83198662,0.000139,2]
[328895037,1717967356243,-2085.14962,0.0001395,2]
[328895038,1717967356269,-2085.14962,0.0001398,2]
[328895039,1717967356294,-239.06,0.00013989,3]
[328895040,1717967356318,-717.22,0.00013989,3]
[328895041,1717967356344,-153.1,0.0001399,2]
[328895042,1717967356368,-1000.0,0.00013996,2]
[328895043,1717967356392,-205.60285074,0.00013997,2]
[328895044,1717967356416,-7149.50274906,0.00013997,2]
[328895045,1717967356440,-155.0,0.00013997,2]
[328895046,1717967356464,-181.80286879,0.00013997,2]
[328895047,1717967356488,-156.25165599,0.00013997,2]
[328895048,1717967356513,-8420.13275678,0.00013997,2]
[328895049,1717967356540,-2229.8040328,0.00013997,2]
[328895050,1717967356568,-155.0,0.00013997,2]
[328895051,1717967356592,-600.0,0.00013997,2]
[328895052,1717967356617,-155.0,0.00013997,2]
[328895053,1717967356641,-155.0,0.00013997,2]
[328895054,1717967356667,-293.48725277,0.00013997,2]
[328895055,1717967356692,-345.57209114,0.00013997,2]
[328895056,1717967356717,-998.98348,0.00013997,2]
[328895057,1717967356740,-842.19870369,0.00013997,2]
[328895058,1717967356765,-200.72900667,0.00013997,2]
[328895059,1717967356791,-352.02779188,0.00013997,2]
[328895060,1717967356816,-482.27832025,0.00013998,2]
[328895061,1717967356843,-986.01165312,0.00013998,2]
[328895062,1717967356868,-785.97365736,0.00013999,2]
[328895063,1717967356895,-325.82036778,0.00013999,2]
[328895064,1717967356919,-161.27128855,0.00013999,2]
[328895065,1717967356946,-171155.02105008,0.00013999,2]
[328895067,1717967361106,-27426.77123889,0.00013999,2]
[328895074,1717967432827,-198.1970018,0.000139,2]